bitfinex/quotes_ETHUSD_20251119
["timestamp","ask_amount","ask_price","bid_price","bid_amount"]
[1763557958983,0.50765961,3099.7,3099.6,4.18622273]
[1763557960785,0.50765961,3099.7,3099.6,3.72512273]
[1763557962288,0.50765961,3099.7,3099.6,3.22622273]
[1763557962485,0.50765961,3099.7,3099.4,6.45386184]
[1763557962785,0.4764,3099.5,3099.4,3.22743092]
[1763557962989,0.881904,3099.5,3099.4,3.22743092]
[1763557963160,1.1835594,3099.5,3099.4,3.22743092]
[1763557963360,0.7071594,3099.5,3099.4,3.69033092]
[1763557964174,0.3016554,3099.5,3099.4,4.15143092]
[1763557964575,0.3016554,3099.5,3099.4,3.22743092]
[1763557964576,0.9415594,3099.5,3099.4,3.22743092]
[1763557966896,0.9415594,3099.5,3099.4,0.001]
[1763557967074,1.4374594,3099.5,3099.4,0.001]
[1763557967274,2.13334055,3099.5,3099.4,0.001]
[1763557968203,1.63744055,3099.5,3099.4,0.001]
[1763557968583,0.9415594,3099.5,3099.4,0.001]
[1763557970175,1.4374594,3099.5,3099.4,0.001]
[1763557970591,2.36420424,3099.5,3099.4,0.001]
[1763557970781,3.23418178,3099.5,3099.4,0.001]
[1763557971771,2.36420424,3099.5,3099.4,0.001]
[1763557972107,3.52385075,3099.5,3099.4,0.001]
[1763557974376,3.22299535,3099.5,3099.4,0.001]
[1763557977112,0.69588115,3099.5,3099.4,0.4639]
[1763557977432,0.2344,3099.5,3099.4,0.001]
[1763557977712,0.7303,3099.5,3099.4,0.001]
[1763557977880,2.00598275,3099.5,3099.4,0.001]
[1763557978086,1.52215504,3099.5,3099.4,0.001]
[1763557978331,3.3784827,3099.5,3099.4,0.001]
[1763557979225,2.21803619,3099.5,3099.4,0.001]
[1763557982828,1.72213619,3099.5,3099.4,0.001]
[1763557983026,2.21803619,3099.5,3099.4,0.001]
[1763557983534,9.46025307,3099.5,3099.4,0.001]
[1763557983721,9.07390203,3099.5,3099.4,0.001]
[1763557983924,4.47947425,3099.5,3099.4,0.001]
[1763557984141,4.78144517,3099.5,3099.4,0.001]
[1763557984519,3.04264871,3099.5,3099.4,0.001]
[1763557984706,1.31249664,3099.4,3099.0,0.001]
[1763557984899,1.56945477,3099.1,3099.0,0.001]
[1763557985122,1.87142569,3099.1,3099.0,0.001]
[1763557985438,2.41360382,3099.1,3099.0,0.001]
[1763557986300,3.57206065,3099.1,3099.0,0.001]
[1763557986636,4.10310933,3099.1,3099.0,0.001]
[1763557987225,3.60450933,3099.1,3099.0,0.001]
[1763557987422,3.31488864,3099.1,3099.0,0.001]
[1763557987621,2.37333596,3099.1,3099.0,0.4639]
[1763557987904,1.54440382,3099.1,3099.0,0.001]
[1763557988107,1.33578515,3099.1,3099.0,0.001]
[1763557988315,0.639904,3099.1,3099.0,0.001]
[1763557988521,1.32658801,3099.1,3099.0,0.001]
[1763557988924,2.02246916,3099.1,3099.0,0.001]
[1763557989246,1.10138515,3099.1,3099.0,0.4725]
[1763557989537,1.10138515,3099.1,3099.0,0.9512]
[1763557989538,0.69588115,3099.1,3099.0,0.9512]
[1763557989737,0.87083614,3099.5,3099.0,0.9512]
[1763557989940,0.002,3099.5,3099.4,0.6575]
[1763557990238,0.002,3099.5,3099.2,6.45327826]
[1763557990442,0.002,3099.5,3099.4,0.4715]
[1763557990809,0.002,3099.5,3099.4,0.9502]
[1763557993831,0.002,3099.5,3099.4,4.17663092]
[1763557995455,0.002,3099.5,3099.4,5.08362356]
[1763557996461,0.002,3099.5,3099.4,5.01997356]
[1763557996661,0.002,3099.5,3099.4,6.23846791]
[1763557996824,0.002,3099.5,3099.4,5.75976791]
[1763557997029,0.0012,3099.5,3099.4,3.63428092]
[1763557997429,0.0012,3099.5,3099.4,4.11298092]
[1763557999665,0.0012,3099.5,3099.4,5.01997356]
[1763558001164,0.002,3099.9,3099.5,0.90699264]
[1763558001362,0.002,3099.9,3099.8,6.66387462]
[1763558001562,0.002,3099.9,3099.8,7.80896208]
[1763558002065,0.002,3099.9,3099.8,1.61658746]
[1763558002366,0.002,3099.9,3099.8,4.17621458]
[1763558003173,0.002,3099.9,3099.8,5.08320722]
[1763558003837,0.002,3100.1,3099.9,0.90699264]
[1763558004032,0.002,3100.4,3100.1,0.6629]
[1763558004231,0.002,3100.4,3100.3,1.38169264]
[1763558004456,0.002,3100.4,3100.3,5.38341367]
[1763558004760,0.002,3100.4,3100.3,5.88271367]
[1763558009467,0.002,3100.4,3100.3,5.91496861]
[1763558009770,0.002,3100.4,3100.3,5.88271367]
[1763558012083,0.002,3100.4,3100.3,4.47642103]
[1763558012454,0.002,3100.4,3100.3,5.88271367]
[1763558014942,0.002,3100.4,3100.3,10.47143675]
[1763558018758,0.002,3100.4,3100.3,12.06314817]
[1763558020154,0.002,3100.4,3100.3,5.38341367]
[1763558020354,0.002,3100.4,3100.3,5.85721367]
[1763558022066,0.0012,3100.4,3100.3,5.85721367]
[1763558022675,0.0012,3100.4,3100.3,5.38341367]
[1763558022885,0.0012,3100.4,3100.3,4.60718694]
[1763558023463,0.0012,3100.4,3100.3,5.08098694]
[1763558023665,0.0012,3100.4,3100.3,4.60718694]
[1763558024162,0.4681,3100.4,3100.3,4.13248694]
[1763558024360,0.0012,3100.4,3100.3,4.13248694]
[1763558024713,0.4681,3100.4,3100.3,4.13248694]
[1763558024865,0.7766,3100.4,3100.3,4.13248694]
[1763558026191,0.0012,3100.4,3100.3,4.59438694]
[1763558026368,0.2936,3100.4,3100.3,4.13248694]
[1763558027592,0.0012,3100.4,3100.3,4.59438694]
[1763558031283,0.50752579,3100.4,3100.3,4.59438694]
[1763558031479,0.50752579,3100.4,3100.3,5.06818694]
[1763558032410,0.50752579,3100.4,3100.3,4.59438694]
[1763558032616,1.28122579,3100.4,3100.3,4.13248694]
[1763558032816,1.58319458,3100.4,3100.3,4.13248694]
[1763558033000,1.10189458,3100.4,3100.3,4.13248694]
[1763558035329,1.10189458,3100.4,3100.3,4.59438694]
[1763558036016,1.10189458,3100.4,3100.3,4.13248694]
[1763558036931,0.80949458,3100.4,3100.3,4.59438694]
[1763558037142,0.80949458,3100.4,3100.3,4.59538694]
[1763558037430,1.28122579,3100.4,3100.3,4.13348694]
[1763558037686,2.68615548,3100.4,3100.3,0.001]
[1763558037884,2.62002448,3100.4,3100.3,3.2264943]
[1763558038183,3.31748138,3100.4,3100.3,3.2264943]
[1763558038783,3.31748138,3100.4,3100.3,0.001]
[1763558039572,2.44864524,3100.4,3100.3,0.001]
[1763558041423,1.69852969,3100.4,3100.3,0.001]
[1763558041678,1.29302569,3100.4,3100.3,0.001]
[1763558041881,1.00107279,3100.4,3100.3,0.001]
[1763558042266,0.70867279,3100.4,3100.3,0.4629]
[1763558042478,1.69852969,3100.4,3100.3,0.001]
[1763558042689,1.00107279,3100.4,3100.3,0.001]
[1763558043538,1.48237279,3100.4,3100.3,0.001]
[1763558043851,2.39801266,3100.4,3100.3,0.001]
[1763558044267,3.2668488,3100.4,3100.3,0.001]
[1763558044487,2.39801266,3100.4,3100.3,0.001]
[1763558045472,0.405504,3100.3,3099.9,0.001]
[1763558045637,1.27590466,3100.0,3099.9,0.001]
[1763558045833,2.21385991,3100.0,3099.9,0.001]
[1763558046033,3.68275037,3100.0,3099.9,0.001]
[1763558046274,0.405504,3099.9,3099.4,0.001]
[1763558046456,0.602904,3099.5,3099.4,0.001]
[1763558046769,0.882404,3099.5,3099.4,0.001]
[1763558047072,1.87008888,3099.5,3099.4,0.001]
[1763558047451,2.56754578,3099.5,3099.4,0.001]
[1763558047848,3.07410735,3099.5,3099.4,0.001]
[1763558048748,3.94242194,3099.5,3099.4,0.001]
[1763558049797,3.94166193,3099.5,3099.4,0.001]
[1763558050178,3.07334734,3099.5,3099.4,0.001]
[1763558051675,2.56678577,3099.5,3099.4,0.001]
[1763558054095,2.08568577,3099.5,3099.4,0.001]
[1763558054297,1.27816568,3099.5,3099.4,0.001]
[1763558054461,0.1807,3099.8,3099.4,0.4856]
[1763558054797,0.6311,3099.8,3099.4,0.4856]
[1763558054995,0.3268,3099.5,3099.4,0.001]
[1763558056564,1.181504,3099.5,3099.4,0.001]
[1763558057480,1.48212518,3099.5,3099.4,0.001]
[1763558057680,1.69960405,3099.5,3099.4,0.001]
[1763558058793,2.39223018,3099.5,3099.4,0.001]
[1763558063383,1.94303018,3099.5,3099.4,0.001]
[1763558063580,1.72626637,3099.5,3099.4,0.001]
[1763558063906,0.30062118,3099.5,3099.4,0.9623]
[1763558064121,0.3009619,3099.7,3099.4,0.9623]
[1763558064286,1.50089984,3099.8,3099.5,6.45265364]
[1763558064493,1.39987768,3099.7,3099.5,6.45265364]
[1763558064834,0.5903619,3099.6,3099.5,3.22632682]
[1763558065322,1.0620619,3099.6,3099.4,0.001]
[1763558065620,1.0620619,3099.6,3099.4,3.22743092]
[1763558065621,0.7111659,3099.5,3099.4,3.22743092]
[1763558066226,0.3056619,3099.5,3099.4,3.22743092]
[1763558066521,0.410204,3099.5,3099.4,0.001]
[1763558066821,0.7111659,3099.5,3099.4,0.001]
[1763558066994,1.1847659,3099.5,3099.4,0.001]
[1763558067619,0.7111659,3099.5,3099.4,0.001]
[1763558067821,0.410204,3099.5,3099.4,0.001]
[1763558068010,0.405504,3099.6,3099.4,0.4763]
[1763558068211,1.40123226,3099.6,3099.5,0.4753]
[1763558068432,0.70702455,3099.6,3099.5,3.70162682]
[1763558068625,0.91203066,3099.6,3099.5,3.70162682]
[1763558068926,1.50295121,3099.6,3099.5,3.22632682]
[1763558069126,2.19715892,3099.6,3099.5,3.22632682]
[1763558070428,2.19715892,3099.6,3099.4,0.001]
[1763558070608,1.00042826,3099.5,3099.4,0.001]
[1763558070809,1.47402826,3099.5,3099.4,0.001]
[1763558071869,1.88073226,3099.5,3099.4,0.001]
[1763558072147,2.7877249,3099.5,3099.4,0.001]
[1763558072315,1.31249664,3099.4,3099.0,0.001]
[1763558072515,1.84922066,3099.1,3099.0,0.001]
[1763558072714,2.15074121,3099.1,3099.0,0.001]
[1763558072947,3.31854892,3099.1,3099.0,0.001]
[1763558073148,2.66523965,3099.1,3099.0,0.001]
[1763558076050,1.46322826,3099.1,3099.0,0.001]
[1763558076358,1.40123226,3099.1,3099.0,0.4763]
[1763558076568,0.30152055,3099.1,3099.0,0.4763]
[1763558076761,0.8702193,3099.3,3099.1,3.22674324]
[1763558076913,0.2878,3099.1,3099.0,3.22781329]
[1763558077115,0.99551166,3099.1,3099.0,0.001]
[1763558077310,1.46721166,3099.1,3099.0,3.22784737]
[1763558077543,1.68971937,3099.1,3099.0,3.22784737]
[1763558077746,0.99551166,3099.1,3099.0,3.22784737]
[1763558079824,0.99551166,3099.1,3099.0,0.001]
[1763558080025,1.40191937,3099.1,3099.0,0.4542]
[1763558080225,0.70771166,3099.1,3099.0,0.4542]
[1763558081761,1.00171166,3099.1,3099.0,0.4542]
[1763558082057,1.508296,3099.1,3099.0,0.001]
[1763558082660,1.90850371,3099.1,3099.0,0.4542]
[1763558083258,2.94597601,3099.1,3099.0,0.001]
[1763558083478,5.01317959,3099.1,3099.0,0.001]
[1763558086658,4.54757959,3099.1,3099.0,0.001]
[1763558086871,5.01317959,3099.1,3099.0,0.001]
[1763558091270,5.00511248,3099.1,3099.0,0.001]
[1763558091988,4.49852814,3099.1,3099.0,0.001]
[1763558092566,4.03292814,3099.1,3099.0,0.001]
[1763558092968,4.49852814,3099.1,3099.0,0.001]
[1763558094121,3.3383172,3099.1,3099.0,0.001]
[1763558094791,5.07933637,3099.1,3099.0,0.001]
[1763558095163,5.58599577,3099.1,3099.0,0.001]
[1763558096189,5.29185522,3099.1,3099.0,0.001]
[1763558096762,5.29105522,3099.1,3099.0,0.001]
[1763558099574,4.88985122,3099.1,3099.0,0.001]
[1763558099993,5.29535522,3099.1,3099.0,0.001]
[1763558100305,3.55433605,3099.1,3099.0,0.001]
[1763558100614,3.55433605,3099.1,3098.8,0.001]
[1763558100615,1.31249664,3099.0,3098.8,0.001]
[1763558100819,9.11363732,3098.9,3098.8,0.001]
[1763558101123,9.11363732,3098.9,3098.7,0.001]
[1763558101124,1.31249664,3098.8,3098.7,0.001]
[1763558101407,2.76740435,3098.8,3098.7,0.001]
[1763558102075,1.39301171,3098.8,3098.7,0.001]
[1763558102277,3.79351049,3098.8,3098.7,0.001]
[1763558102486,4.70050313,3098.8,3098.7,0.001]
[1763558103170,5.00243915,3098.8,3098.7,0.001]
[1763558103606,3.2626349,3098.8,3098.7,0.001]
[1763558104082,5.00145369,3098.8,3098.7,0.001]
[1763558104583,1.90313637,3098.8,3098.7,0.4542]
[1763558105105,1.86545247,3098.8,3098.7,0.9493]
[1763558105307,1.17124476,3098.8,3098.7,0.9493]
[1763558105610,0.30193602,3098.8,3098.7,0.9493]
[1763558105776,0.70744002,3098.8,3098.7,0.9493]
[1763558106503,0.405504,3098.8,3098.7,4.17645977]
[1763558106705,1.20404569,3098.8,3098.7,0.001]
[1763558106872,2.07335443,3098.8,3098.7,0.001]
[1763558107205,2.10558884,3098.8,3098.7,0.001]
[1763558107417,3.17814897,3098.8,3098.7,3.68135977]
[1763558107707,2.30864604,3098.8,3098.7,0.001]
[1763558107874,3.17814897,3098.8,3098.7,0.001]
[1763558108493,3.17814897,3098.8,3098.7,3.70015977]
[1763558108905,2.77787243,3098.8,3098.7,3.70015977]
[1763558109394,2.77787243,3098.8,3098.7,0.473]
[1763558109598,2.77787243,3098.8,3098.7,3.70015977]
[1763558109809,2.77787243,3098.8,3098.7,0.473]
[1763558110307,2.77787243,3098.8,3098.7,4.17465977]
[1763558110478,1.9083695,3098.8,3098.7,4.91505192]
[1763558111309,1.5028655,3098.8,3098.7,4.91505192]
[1763558112007,0.80865779,3098.8,3098.7,4.91505192]
[1763558112172,0.80877441,3098.8,3098.7,4.91505192]
[1763558112580,0.5067161,3098.8,3098.7,4.91505192]
[1763558114103,0.30205831,3099.0,3098.7,8.14221169]
[1763558114296,0.002,3099.1,3098.9,0.472]
[1763558114490,0.002,3099.1,3099.0,0.9465]
[1763558114694,0.002,3099.1,3099.0,4.17334737]
[1763558116914,0.002,3099.4,3099.3,6.19250877]
[1763558117113,0.002,3099.4,3099.3,7.13900877]
[1763558117275,0.002,3099.4,3099.3,7.87206965]
[1763558118312,0.002,3099.5,3099.3,7.87206965]
[1763558118515,0.30405831,3099.8,3099.3,7.87206965]
[1763558118516,0.30405831,3099.8,3099.4,0.9465]
[1763558118718,0.002,3099.8,3099.7,0.472]
[1763558118880,0.002,3099.8,3099.7,3.69811865]
[1763558119211,0.002,3099.8,3099.7,4.91250293]
[1763558121916,0.0012,3099.8,3099.7,4.91250293]
[1763558123115,0.002,3099.9,3099.7,8.13862158]
[1763558123286,0.002,3099.9,3099.8,7.13900877]
[1763558123485,0.999,3100.0,3099.8,7.13900877]
[1763558123685,0.999,3100.0,3099.9,2.37961304]
[1763558123914,0.0012,3100.4,3099.9,2.37961304]
[1763558124092,0.0012,3100.4,3100.1,0.6636]
[1763558124286,0.0012,3100.4,3100.1,1.1594]
[1763558125006,0.0012,3100.4,3100.1,4.38510239]
[1763558125216,0.0012,3100.4,3100.1,5.2895046]
[1763558128800,0.0012,3100.4,3100.1,4.7937046]
[1763558129190,0.0012,3100.4,3100.1,5.2895046]
[1763558129593,0.0012,3100.4,3100.1,4.6021046]
[1763558130993,0.0012,3100.4,3100.1,3.69770239]
[1763558131194,0.405504,3100.1,3099.7,3.22611865]
[1763558131393,0.405504,3100.1,3099.7,6.4522373]
[1763558131394,0.410204,3100.1,3099.7,6.4522373]
[1763558131678,0.410204,3100.1,3099.6,3.22719595]
[1763558131679,0.405504,3099.7,3099.6,3.22722273]
[1763558132090,0.405504,3099.7,3099.6,3.71622273]
[1763558132296,0.405504,3099.9,3099.6,7.43824546]
[1763558132599,0.407504,3100.2,3099.6,7.43824546]
[1763558132799,0.70775554,3100.2,3099.8,0.489]
[1763558133102,0.002,3100.2,3099.8,0.489]
[1763558133308,0.002,3100.2,3099.9,3.22591051]
[1763558133506,0.002,3100.2,3099.9,6.45182102]
[1763558133705,0.002,3100.2,3100.1,0.489]
[1763558134022,0.714004,3100.0,3099.8,3.22598067]
[1763558134211,0.0047,3099.7,3099.6,3.22714094]
[1763558135437,0.002,3100.2,3099.6,0.001]
[1763558135613,0.405504,3100.1,3099.6,0.49]
[1763558135805,0.70599266,3100.1,3099.6,0.49]
[1763558136002,0.861904,3099.7,3099.6,0.001]
[1763558136412,1.63657636,3099.7,3099.6,0.001]
[1763558136618,1.800234,3099.7,3099.6,0.001]
[1763558137431,2.49303093,3099.7,3099.6,0.001]
[1763558139419,1.85527329,3099.7,3099.6,0.001]
[1763558139736,1.85527329,3099.7,3099.6,0.4825]
[1763558139924,0.70607636,3099.7,3099.6,0.4825]
[1763558140236,0.99336929,3099.8,3099.6,0.4825]
[1763558140439,0.4663,3100.2,3099.6,0.4543]
[1763558140440,0.30057236,3099.7,3099.6,0.4543]
[1763558140628,0.405504,3099.8,3099.6,0.4543]
[1763558140944,0.30057236,3099.8,3099.6,0.9358]
[1763558141237,0.405504,3099.8,3099.7,0.4815]
[1763558141535,0.70807636,3100.2,3099.7,3.70761865]
[1763558141736,0.70807636,3100.2,3099.8,0.4815]
[1763558142139,0.70807636,3100.2,3100.1,0.4815]
[1763558142513,0.002,3100.2,3100.1,0.4815]
[1763558142841,0.002,3100.2,3099.8,0.4533]
[1763558143010,0.002,3100.2,3099.8,1.14395373]
[1763558143210,0.407504,3100.2,3099.8,1.14395373]
[1763558143415,0.407504,3100.2,3100.1,0.4815]
[1763558143643,0.002,3100.2,3100.1,0.4815]
[1763558145231,0.002,3100.2,3100.1,1.1342]
[1763558145546,0.407504,3100.2,3100.1,4.35990239]
[1763558145742,0.70887329,3100.2,3100.1,5.11847295]
[1763558146043,0.002,3100.2,3100.1,5.11847295]
[1763558146855,0.0012,3100.2,3100.1,5.11847295]
[1763558151334,0.69279693,3100.7,3100.5,0.4815]
[1763558151662,0.002,3100.8,3100.6,6.45036444]
[1763558151834,0.002,3100.8,3100.6,6.93186444]
[1763558152160,0.002,3100.8,3100.7,0.4815]
[1763558152462,0.50835094,3100.8,3100.7,0.4815]
[1763558153349,0.91385494,3100.8,3100.7,0.4815]
[1763558153558,0.91385494,3100.8,3100.7,3.7065782]
[1763558153761,0.91385494,3100.8,3100.7,4.1598782]
[1763558153959,1.24005494,3100.8,3100.5,3.22526006]
[1763558154157,0.0046,3100.7,3100.5,6.4505463]
[1763558154377,0.91385494,3100.8,3100.5,6.4505463]
[1763558155569,0.91385494,3100.8,3100.4,3.22536272]
[1763558155757,0.91385494,3100.8,3100.4,3.67866272]
[1763558155955,1.60879763,3100.8,3100.4,1.46626513]
[1763558156301,0.91385494,3100.8,3100.4,1.46626513]
[1763558157358,0.91385494,3100.8,3100.7,0.4815]
[1763558157681,0.50835094,3100.8,3100.7,3.7065782]
[1763558157881,0.50835094,3100.8,3100.7,4.89838373]
[1763558160885,0.50835094,3100.8,3100.7,4.44508373]
[1763558161474,0.50835094,3100.8,3100.7,4.89838373]
[1763558162799,0.50835094,3100.8,3100.7,4.93063451]
[1763558163096,0.50835094,3100.8,3100.7,4.89838373]
[1763558164777,0.50835094,3100.8,3100.7,4.93063451]
[1763558165181,0.50835094,3100.8,3100.7,5.83762715]
[1763558165370,0.002,3101.3,3101.0,0.4815]
[1763558165700,0.002,3101.3,3101.2,0.6809]
[1763558165903,0.002,3101.3,3101.2,1.1342]
[1763558166471,0.002,3101.3,3101.2,5.26575087]
[1763558166673,0.30308033,3102.5,3101.3,0.90699264]
[1763558166877,0.002,3102.5,3102.2,0.5992]
[1763558167110,0.002,3102.5,3102.2,0.4815]
[1763558167707,0.002,3102.5,3101.3,0.90699264]
[1763558167708,0.3393,3102.3,3101.3,0.90699264]
[1763558167883,0.405504,3102.2,3101.4,1.16420365]
[1763558168212,0.70632304,3102.2,3101.4,1.16420365]
[1763558168395,0.002,3102.3,3101.5,0.4818]
[1763558168708,0.4685,3102.3,3101.6,9.67242711]
[1763558169208,0.4685,3102.3,3102.2,0.6591]
[1763558169209,0.002,3102.3,3102.2,0.6591]
[1763558169617,0.002,3102.3,3102.2,1.1409]
[1763558170516,0.002,3102.3,3102.2,4.36441879]
[1763558170702,0.002,3102.3,3102.2,5.12322304]
[1763558171817,0.0012,3102.3,3102.2,5.12322304]
[1763558172390,0.0012,3102.3,3102.2,4.45212304]
[1763558172623,0.0012,3102.3,3102.2,4.93392304]
[1763558173211,0.0012,3102.3,3102.2,5.84091568]
[1763558175616,0.002,3102.7,3102.2,5.84091568]
[1763558175617,0.002,3102.9,3102.2,15.51147205]
[1763558175815,0.002,3102.9,3102.8,0.4698]
[1763558176218,0.002,3102.9,3102.8,0.9516]
[1763558176418,0.002,3102.9,3102.8,0.9363]
[1763558176621,0.3093,3102.9,3102.8,3.68939544]
[1763558176856,0.002,3102.9,3102.8,4.17449544]
[1763558177010,0.002,3102.9,3102.8,5.23654494]
[1763558178337,0.002,3102.9,3102.8,6.14353758]
[1763558178937,0.002,3102.9,3102.8,6.17576653]
[1763558180147,0.002,3102.9,3102.8,6.58127053]
[1763558182240,0.002,3102.9,3102.8,6.54904158]
[1763558184920,0.002,3102.9,3102.8,6.06724158]
[1763558185223,0.002,3102.9,3102.8,5.66173758]
[1763558186125,0.002,3102.9,3102.8,6.13763758]
[1763558188066,0.002,3102.9,3102.8,6.16986653]
[1763558188433,0.002,3102.9,3102.8,6.62156653]
[1763558188632,0.002,3102.9,3102.8,6.58933758]
[1763558188864,1e-08,3103.0,3102.9,1.86039264]
[1763558189064,1e-08,3103.0,3102.9,3.50674732]
[1763558189259,1e-08,3103.0,3102.9,6.69731099]
[1763558190036,1e-08,3103.0,3102.9,6.22141099]
[1763558190232,1e-08,3103.0,3102.9,6.69731099]
[1763558190663,1e-08,3103.0,3102.9,6.22141099]
[1763558190868,0.49380001,3103.0,3102.9,5.74391099]
[1763558191168,1e-08,3103.0,3102.9,6.22141099]
[1763558191555,1e-08,3103.0,3102.9,6.69731099]
[1763558192967,0.86305663,3104.8,3102.9,19.58847731]
[1763558193155,0.4517,3104.3,3103.0,2.4669746]
[1763558193556,0.30043398,3104.5,3103.2,1.23049264]
[1763558193759,0.1838,3105.0,3103.6,0.90699264]
[1763558193760,0.30043398,3104.6,3103.6,0.90699264]
[1763558194056,0.30043398,3104.9,3103.7,0.5081196]
[1763558194256,0.30043398,3104.8,3103.7,0.5081196]
[1763558194456,0.75213398,3104.8,3103.7,1.37117623]
[1763558194658,0.30043398,3104.7,3103.8,0.22781689]
[1763558194856,0.4517,3104.8,3103.8,0.70371689]
[1763558195155,0.30043398,3104.7,3103.8,0.70371689]
[1763558195364,0.30043398,3104.7,3103.9,0.4759]
[1763558195558,0.30043398,3104.7,3104.0,12.88659792]
[1763558195754,0.30043398,3104.7,3104.0,14.2456294]
[1763558196070,0.30043398,3104.8,3104.6,0.4775]
[1763558196274,0.30043398,3105.1,3104.6,0.4775]
[1763558196445,0.3272,3104.7,3104.1,7.90132729]
[1763558196642,0.3264,3104.7,3104.1,7.42542729]
[1763558196841,0.3264,3104.7,3104.2,2.16710567]
[1763558197239,0.3264,3104.7,3104.2,2.64300567]
[1763558197462,0.3264,3104.7,3104.3,9.66401442]
[1763558197973,0.3007924,3105.0,3104.6,0.4958]
[1763558198568,0.4524,3105.0,3104.4,0.453]
[1763558198869,0.1815,3104.9,3104.4,1.55054582]
[1763558199058,0.3007924,3105.0,3104.4,2.91053846]
[1763558199238,0.3007924,3105.2,3104.9,0.4958]
[1763558199571,0.3007924,3105.2,3105.0,6.44122382]
[1763558200670,0.3246,3105.1,3105.0,3.22061191]
[1763558201141,0.7757,3105.1,3105.0,3.22061191]
[1763558201337,1.0764924,3105.1,3105.0,3.22061191]
[1763558201661,1.0764924,3105.1,3104.5,6.44226122]
[1763558201855,0.4733,3104.6,3104.5,4.12812325]
[1763558202647,0.1815,3104.8,3104.5,7.34925386]
[1763558202870,0.857904,3105.2,3104.5,14.28731508]
[1763558203074,0.30077591,3105.1,3104.5,14.28731508]
[1763558203300,0.3246,3104.6,3104.5,4.12812325]
[1763558203801,0.7757,3104.6,3104.5,3.22113061]
[1763558204447,0.3246,3104.6,3104.5,3.22113061]
[1763558204673,0.1815,3104.8,3104.5,6.93806122]
[1763558204870,0.30083741,3104.9,3104.5,6.93806122]
[1763558204871,0.30083741,3104.9,3104.5,10.15919183]
[1763558205073,0.30083741,3105.1,3104.6,0.48521026]
[1763558205380,0.4524,3105.4,3104.8,0.4958]
[1763558205581,0.95103741,3105.3,3104.9,9.66214692]
[1763558205785,0.30083741,3105.2,3104.9,10.11514692]
[1763558205975,0.30083741,3105.4,3104.9,9.66214692]
[1763558206153,0.93473741,3105.5,3104.9,12.88286256]
[1763558206354,0.93473741,3105.5,3104.9,3.22071564]
[1763558206355,0.3408,3105.0,3104.9,3.22071564]
[1763558206551,0.75203741,3105.4,3104.9,9.66214692]
[1763558206766,0.4524,3105.3,3104.9,9.66214692]
[1763558207589,0.3408,3105.0,3104.9,3.22071564]
[1763558207777,0.3408,3105.0,3104.6,9.66305502]
[1763558207953,0.0034,3104.9,3104.6,11.1787484]
[1763558208676,0.4524,3105.3,3104.6,14.39977526]
[1763558208854,0.4524,3105.3,3104.6,9.66305502]
[1763558209584,0.4524,3105.3,3104.6,3.2210013]
[1763558209585,0.3408,3104.7,3104.6,3.2210013]
[1763558209786,0.30073623,3105.2,3104.4,1.35939264]
[1763558210288,0.30073623,3105.2,3104.3,12.8853066]
[1763558210289,0.3408,3104.5,3104.3,6.44263032]
[1763558210489,0.4524,3105.1,3104.3,12.8853066]
[1763558210490,0.30073623,3105.0,3104.3,12.8853066]
[1763558210653,0.30073623,3105.0,3104.4,0.98101234]
[1763558210859,0.30073623,3105.1,3104.4,0.98101234]
[1763558211162,0.3408,3104.5,3104.3,6.44263032]
[1763558211456,0.30073623,3104.9,3104.3,9.66396846]
[1763558211662,0.1815,3104.7,3104.3,6.44263032]
[1763558212186,0.30073623,3104.9,3104.3,6.44263032]
[1763558212395,0.30073623,3105.0,3104.6,0.4958]
[1763558212606,0.70624023,3105.2,3104.6,0.4958]
[1763558212897,0.002,3105.0,3104.6,0.4958]
[1763558213260,0.002,3105.0,3104.6,0.9488]
[1763558213463,0.002,3105.0,3104.4,0.03221234]
[1763558213665,0.50766936,3105.0,3104.4,0.03221234]
[1763558213860,0.50766936,3105.0,3104.5,9.66339183]
[1763558214582,0.1815,3104.9,3104.5,9.66339183]
[1763558214983,0.6339,3104.9,3104.5,9.66339183]
[1763558215308,0.1815,3104.9,3104.5,9.66339183]
[1763558216068,0.1815,3104.9,3104.5,3.22113061]
[1763558216459,0.6339,3104.9,3104.5,3.22113061]
[1763558216800,0.50766936,3105.0,3104.8,0.4958]
[1763558217730,0.50766936,3105.0,3104.9,0.4958]
[1763558217862,0.98096936,3105.0,3104.5,3.25334191]
[1763558218063,0.50766936,3105.0,3104.7,6.44184622]
[1763558218262,0.50766936,3105.0,3104.9,0.4958]
[1763558219502,0.98026936,3105.0,3104.7,6.44184622]
[1763558219998,0.98026936,3105.0,3104.7,3.22092311]
[1763558220186,0.0047,3104.8,3104.6,6.4420246]
[1763558220387,0.3369,3104.7,3104.6,4.12799038]
[1763558220698,0.3369,3104.7,3104.6,3.22099774]
[1763558220867,1.09087097,3104.7,3104.6,3.22099774]
[1763558221701,0.30157097,3104.7,3104.6,3.71679774]
[1763558221926,0.30157097,3104.7,3104.6,3.22099774]
[1763558222104,0.48307097,3104.9,3104.5,3.22113061]
[1763558222403,0.30157097,3104.8,3104.3,9.66398881]
[1763558222700,0.30206396,3104.8,3104.3,12.88532695]
[1763558223003,0.30206396,3104.8,3104.7,0.4958]
[1763558223404,0.30206396,3104.9,3104.7,0.4958]
[1763558223602,0.30206396,3104.9,3104.7,0.453]
[1763558223807,0.30206396,3104.9,3104.3,12.88532695]
[1763558223808,1.09466396,3104.8,3104.3,9.66398881]
[1763558224009,0.30206396,3104.7,3104.3,9.66398881]
[1763558224184,0.3193,3104.7,3104.3,0.90699264]
[1763558224383,0.62136396,3104.7,3104.3,0.90699264]
[1763558224797,0.30206396,3104.6,3104.3,0.90699264]
[1763558224994,0.3193,3104.7,3104.3,0.90699264]
[1763558225296,0.75446396,3104.7,3104.3,0.90699264]
[1763558225606,0.30206396,3104.6,3104.3,0.90699264]
[1763558225811,0.34,3104.4,3104.2,6.44288382]
[1763558226011,0.0045,3104.3,3104.2,3.22144191]